fUSD/lending_fUSD_20240123
["ID","MTS","AMOUNT","RATE_DAILY","PERIOD"]
[312585936,1706031812954,160.16425761,0.00020908,2]
[312585937,1706031813299,393.15011915,0.00021,2]
[312585938,1706031818362,155.18898132,0.00021001,2]
[312585939,1706031840618,2141.45861552,0.00021003,2]
[312585940,1706031847517,202.8749108,0.00021003,2]
[312585941,1706031874294,202.0,0.00020057,2]
[312585942,1706031929313,250.0,0.00020916,2]
[312585962,1706031936593,386.57,0.00020916,2]
[312586007,1706032049403,-1204.78221347,0.00021007,2]
[312586008,1706032049485,-2482.7,0.00021008,2]
[312586009,1706032084523,942.29349524,0.00020916,2]
[312586010,1706032106291,986.82,0.00020872,2]
[312586011,1706032143764,344.49,0.0001897,2]
[312586018,1706032212411,365.02,0.0002089,2]
[312586019,1706032225062,328.0,0.00020902,2]
[312586057,1706032232048,-400.95171784,0.00021055,2]
[312586058,1706032232058,-300.0,0.00021056,2]
[312586059,1706032232067,-150.0,0.00021056,2]
[312586060,1706032232077,-160.16425758,0.00021062,2]
[312586061,1706032232085,-189.12419255,0.00021065,2]
[312586062,1706032232095,-1136.55693113,0.00021066,2]
[312586063,1706032232103,-23900.0,0.00021067,2]
[312586064,1706032232112,-2000.0,0.00021067,2]
[312586065,1706032232121,-252.01,0.00021067,10]
[312586066,1706032232130,-150.0,0.00021067,2]
[312586067,1706032232139,-184.13,0.00021067,2]
[312586068,1706032232150,-500.0,0.00021087,2]
[312586069,1706032232161,-1635.74,0.00021087,2]
[312586070,1706032232169,-11417.33,0.00021087,2]
[312586071,1706032232178,-554.85,0.00021159,2]
[312586072,1706032232187,-160.16425758,0.00021216,2]
[312586073,1706032232196,-554.85,0.00021217,2]
[312586074,1706032232206,-150.99,0.00021221,2]
[312586075,1706032232216,-499.99,0.00021221,2]
[312586076,1706032232225,-344.49,0.00021234,2]
[312586077,1706032232234,-315.44,0.00021236,2]
[312586078,1706032232243,-554.85,0.00021275,2]
[312586080,1706032232253,-494.48148194,0.00021281,2]
[312586082,1706032232262,-157.64331235,0.00021281,2]
[312586084,1706032232270,-554.85,0.00021333,2]
[312586086,1706032232279,-160.16425758,0.0002137,2]
[312586088,1706032232288,-2265.81,0.0002138,2]
[312586090,1706032232297,-554.85,0.00021391,2]
[312586092,1706032232307,-554.85,0.00021449,2]
[312586094,1706032232316,-426.74575253,0.00021496,2]
[312586096,1706032232325,-421.20614068,0.00021496,2]
[312586098,1706032232334,-375.83760977,0.00021496,2]
[312586100,1706032232343,-327.56134791,0.00021496,2]
[312586102,1706032232352,-604.6619069,0.00021496,2]
[312586104,1706032232361,-290.71574331,0.00021496,2]
[312586106,1706032232370,-260.50924699,0.00021496,2]
[312586108,1706032232379,-200.15618346,0.00021496,2]
[312586110,1706032232390,-1722.78487438,0.00021496,2]
[312586113,1706032232399,-1615.17622381,0.00021496,2]
[312586115,1706032232409,-161.81736275,0.00021496,2]
[312586117,1706032232420,-355.96719696,0.00021496,2]
[312586119,1706032232429,-185.53787873,0.00021496,2]
[312586121,1706032232442,-502.21494362,0.00021496,2]
[312586123,1706032232451,-2136.71947033,0.00021496,2]
[312586125,1706032232460,-189.54587012,0.00021496,2]
[312586127,1706032232476,-157.79760794,0.00021497,2]
[312586129,1706032232486,-3002.6369273,0.00021497,2]
[312586131,1706032232495,-155.31278064,0.00021498,2]
[312586133,1706032232505,-33402.57766687,0.00021498,2]
[312586135,1706032232514,-4613.1599952,0.00021498,2]
[312586137,1706032232524,-554.85,0.00021507,2]
[312586139,1706032232533,-160.16425758,0.00021525,2]
[312586141,1706032232542,-554.85,0.00021565,2]
[312586143,1706032232551,-554.85,0.00021623,2]
[312586145,1706032232559,-1708.66,0.00021644,2]
[312586147,1706032232569,-176.47,0.00021647,2]
[312586149,1706032232578,-513.66,0.00021647,2]
[312586151,1706032232587,-160.16425758,0.00021679,2]
[312586153,1706032232596,-554.85,0.00021681,2]
[312586155,1706032232605,-165.96,0.00021722,2]
[312586156,1706032232614,-554.85,0.00021739,2]
[312586157,1706032232624,-554.85,0.00021797,2]
[312586158,1706032232633,-160.16425758,0.00021833,2]
[312586159,1706032232642,-554.85,0.00021855,2]
[312586160,1706032232651,-9069.921,0.00021898,2]
[312586161,1706032232660,-554.85,0.00021913,2]
[312586162,1706032232670,-404.28,0.00021918,3]
[312586163,1706032232679,-8923.99,0.00021918,2]
[312586164,1706032232688,-250.0,0.00021918,2]
[312586165,1706032232698,-6514.01,0.00021918,2]
[312586166,1706032232707,-554.85,0.00021971,2]
[312586167,1706032232716,-1576.5948,0.00021976,2]
[312586168,1706032232725,-8559.5939,0.00021976,2]
[312586169,1706032232735,-160.16425758,0.00021987,2]
[312586170,1706032232744,-554.85,0.00022029,2]
[312586171,1706032232753,-11351.77715904,0.00022077,2]
[312586172,1706032232763,-419.33476208,0.00022078,2]
[312586173,1706032232771,-3191.26397536,0.00022078,2]
[312586174,1706032232781,-554.85,0.00022087,2]
[312586175,1706032232791,-160.16425758,0.00022141,2]
[312586176,1706032232802,-554.85,0.00022145,2]
[312586177,1706032232811,-176.47,0.00022195,2]
[312586178,1706032232821,-45563.0,0.00022196,2]
[312586179,1706032232831,-554.85,0.00022203,2]
[312586180,1706032232841,-554.85,0.00022261,2]
[312586181,1706032232851,-160.16425758,0.00022295,2]
[312586182,1706032232860,-2477.08702393,0.00022308,2]
[312586183,1706032232870,-238.32,0.00022437,2]
[312586184,1706032232879,-1708.66,0.00022445,2]
[312586185,1706032232888,-160.16425758,0.0002245,2]
[312586186,1706032232898,-986.82,0.00022515,2]
[312586187,1706032232907,-3652.8371,0.00022547,2]
[312586188,1706032232917,-177.17930462,0.0002257,2]
[312586189,1706032232926,-640.84340092,0.0002257,2]
[312586190,1706032232935,-189.10579447,0.0002257,2]
[312586191,1706032232945,-254.86712904,0.0002257,2]
[312586192,1706032232955,-220.19602871,0.0002257,2]
[312586193,1706032232964,-160.16425758,0.00022604,2]
[312586194,1706032232980,-220.19602869,0.00022607,2]
[312586195,1706032232990,-194.4155184,0.00022637,2]
[312586196,1706032233000,-220.19602869,0.00022643,2]
[312586197,1706032233010,-967784.00928236,0.00022647,2]
[312586198,1706032233019,-2806.0813,0.0002267,2]
[312586199,1706032233029,-176.47,0.00022743,2]
[312586200,1706032233039,-150.0,0.00022757,2]
[312586201,1706032233049,-160.16425758,0.00022758,2]
[312586202,1706032233058,-155.0,0.00022768,2]
[312586203,1706032233068,-150.50442,0.0002277,2]
[312586204,1706032233077,-150.0,0.0002277,2]
[312586205,1706032233087,-150.76362,0.0002277,2]
[312586206,1706032233097,-9812.76354561,0.0002277,2]
[312586207,1706032233107,-155.0,0.000228,2]
[312586208,1706032233117,-200.0,0.00022816,2]
[312586209,1706032233127,-150.0,0.00022841,2]
[312586210,1706032233137,-150.0,0.00022852,2]
[312586211,1706032233148,-150.0,0.0002286,2]
[312586212,1706032233157,-150.0,0.00022863,2]
[312586213,1706032233167,-1747.284,0.00022896,2]
[312586214,1706032233177,-150.0,0.00022897,2]
[312586215,1706032233188,-432.83617134,0.00022897,2]
[312586216,1706032233197,-292.39211964,0.00022897,2]
[312586217,1706032233207,-1658.61071802,0.00022897,2]
[312586218,1706032233218,-150.0,0.00022898,2]
[312586219,1706032233227,-100000.0,0.00022898,2]
[312586220,1706032233237,-1000.0,0.00022898,2]
[312586221,1706032233247,-500.0,0.000229,2]
[312586222,1706032233257,-2868.9973,0.000229,2]
[312586223,1706032233267,-1000.0,0.000229,2]
[312586224,1706032233276,-3839.0675,0.000229,2]
[312586225,1706032233286,-3398.4936,0.000229,2]
[312586226,1706032233295,-163.66174511,0.000229,2]
[312586227,1706032233304,-117726.98835207,0.000229,2]
[312586228,1706032233324,-5404.96233349,0.000229,2]
[312586229,1706032233335,-6353.30782963,0.000229,2]
[312586230,1706032233345,-160.16425758,0.00022912,2]
[312586231,1706032233354,-150.0,0.00022923,2]
[312586232,1706032233363,-173.29,0.0002294,2]
[312586233,1706032233372,-150.0,0.00022942,2]
[312586234,1706032233382,-150.0,0.00022956,2]
[312586235,1706032233391,-150.0,0.0002298,2]
[312586236,1706032233400,-1500.0,0.00022992,2]
[312586237,1706032233409,-220.39096062,0.00022995,2]
[312586238,1706032233419,-940.13112153,0.00022996,2]
[312586239,1706032233428,-496.3767871,0.00022996,2]
[312586240,1706032233438,-363.71579779,0.00022996,2]
[312586241,1706032233447,-156.79778886,0.00022996,2]
[312586242,1706032233457,-1766.13596665,0.00022996,2]
[312586243,1706032233469,-235.12703746,0.00022996,2]
[312586244,1706032233479,-236.60772836,0.00022996,2]
[312586245,1706032233488,-1178.12872526,0.00022996,2]
[312586246,1706032233497,-204.28991244,0.00022996,2]
[312586247,1706032233506,-183.31936431,0.00022996,2]
[312586248,1706032233516,-651.76209495,0.00022996,2]
[312586249,1706032233525,-633.84130694,0.00022996,2]
[312586250,1706032233535,-344.91405898,0.00022996,2]
[312586251,1706032233548,-367.66610699,0.00022996,2]
[312586252,1706032233563,-1553.06,0.00022996,2]
[312586253,1706032234519,202.0,0.00020722,2]
[312586254,1706032237650,-202.0,0.00022429,4]
[312586255,1706032237673,-558.20785079,0.0002257,2]
[312586256,1706032237695,-1239.79214921,0.00022996,2]
[312586260,1706032237955,-2357.14466972,0.00022996,2]
[312586261,1706032238243,-395.52,0.00022996,2]
[312586262,1706032238285,-0.48494106,0.00022996,2]
[312586263,1706032239087,-1527.09307839,0.00022996,2]
[312586264,1706032239096,-418.21791161,0.00022996,2]
[312586265,1706032239106,-1055.69985772,0.00022996,2]
[312586266,1706032239115,-11171.78270196,0.00022996,2]
[312586267,1706032239126,-631.51626594,0.00022996,2]
[312586291,1706032240651,-31.79971379,0.00022996,2]
[312586421,1706032244353,-453.98977389,0.00022996,2]
[312586446,1706032244591,-443.931316,0.00022996,2]
[312586603,1706032246401,-791.60024584,0.00022996,2]
[312586604,1706032246514,-521.83089759,0.00022995,2]
[312586605,1706032246524,-809.96305041,0.00022996,2]
[312586611,1706032264380,202.0,0.00020722,2]
[312586612,1706032282854,846.63794469,0.00020722,2]
[312586613,1706032358382,2181.95848783,0.00020515,2]
[312586614,1706032376343,2181.95848783,0.00020515,2]
[312586615,1706032382516,12017.99206168,0.00020722,2]
[312586616,1706032389318,1877.50803986,0.00020722,2]
[312586617,1706032394361,1495.19643994,0.00020515,2]
[312586618,1706032399106,563.32688308,0.00020722,2]
[312586620,1706032518042,-3209.72,0.00021055,2]
[312586621,1706032566892,484.29907219,0.00020722,2]
[312586622,1706032573115,544.70092781,0.00020722,2]
[312586623,1706032587514,321.66,0.00019866,2]
[312586624,1706032589944,-265.75241527,0.00021554,2]
[312586625,1706032589965,-1734.24758473,0.00021554,2]
[312586626,1706032590457,-79.43325596,0.00021554,2]
[312586627,1706032609169,1278.88025573,0.00021055,5]
[312586628,1706032610620,-2000.0,0.00021555,2]
[312586629,1706032611466,-2000.0,0.00021555,2]
[312586630,1706032611953,-2000.0,0.00021555,2]
[312586631,1706032612392,-2000.0,0.00021555,2]
[312586632,1706032612780,-1232.99258662,0.00021555,2]
[312586633,1706032612802,-767.00741338,0.00021555,2]
[312586634,1706032613291,-2000.0,0.00021555,2]
[312586635,1706032613643,-2000.0,0.00021555,2]
[312586636,1706032614112,-232.99258662,0.00021555,2]
[312586637,1706032614148,-1767.00741338,0.00021555,2]
[312586638,1706032614495,-2000.0,0.00021555,2]
[312586639,1706032614942,-1232.99258662,0.00021555,2]
[312586640,1706032623047,150.23,0.0002155,2]
[312586641,1706032626676,616.77741338,0.00021555,5]
[312586642,1706032626699,662.10284235,0.00021555,5]
[312586643,1706032642666,1278.88025573,0.00021555,5]
[312586644,1706032668925,-2000.0,0.00021555,2]
[312586645,1706032687424,-2000.0,0.00021555,2]
[312586646,1706032688253,-2000.0,0.00021555,2]
[312586647,1706032688744,-2000.0,0.00021555,2]
[312586648,1706032689182,-2000.0,0.00021555,2]
[312586649,1706032689760,-2000.0,0.00021555,2]
[312586650,1706032690130,-2000.0,0.00021555,2]
[312586651,1706032690550,-2000.0,0.00021555,2]
[312586652,1706032690890,-2000.0,0.00021555,2]
[312586653,1706032691295,-2000.0,0.00021555,2]
[312586654,1706032691627,-2000.0,0.00021555,2]
[312586655,1706032692085,-1278.88025573,0.00021555,5]
[312586656,1706032696143,151.86,0.0002155,2]
[312586657,1706032710679,569.25974427,0.00021555,5]
[312586658,1706032710704,388.47454431,0.00021555,5]
[312586659,1706032727342,1064.28187322,0.00021555,2]
[312586660,1706032731470,547.24358247,0.00021555,2]
[312586661,1706032731492,126.45335198,0.00021555,2]
[312586662,1706032780622,1873.54664802,0.00021555,2]
[312586663,1706032794990,-966.8127056,0.00021555,2]
[312586664,1706032800957,159.54220993,0.00021699,2]
[312586665,1706032801896,873.64508447,0.00021555,2]
[312586666,1706032801919,62.07304231,0.00021555,2]
[312586667,1706032816426,150.11,0.00021722,2]
[312586668,1706032819837,-151.56,0.00021727,2]
[312586669,1706032836576,2000.0,0.00021555,2]
[312586670,1706032851825,2143.8918,0.00021632,14]
[312586671,1706032989210,2000.0,0.00021718,2]
[312586672,1706033013531,1027.9656,0.00021672,2]
[312586674,1706033023100,150.0,0.00021706,2]
[312586676,1706033060116,333.99,0.00019808,2]
[312586677,1706033102626,2000.0,0.00021585,2]
[312586678,1706033132645,230.76633215,0.00021728,2]
[312586683,1706033258154,174.92748786,0.00021639,2]
[312586685,1706033313883,202.0,0.00021137,2]
[312586686,1706033317183,1025.19,0.00021699,2]
[312586703,1706033409287,2000.0,0.00021709,2]
[312586717,1706033438809,-1207.65607797,0.00021729,2]
[312586718,1706033438818,-262.4,0.00021729,2]
[312586720,1706033438828,-657.88,0.00021731,2]
[312586722,1706033438840,-150.0,0.00021738,2]
[312586724,1706033438854,-10515.2,0.00021739,2]
[312586726,1706033438863,-182.51,0.00021747,2]
[312586727,1706033438873,-165.96,0.0002176,2]
[312586729,1706033438884,-737.6,0.00021772,2]
[312586730,1706033438894,-152.4,0.00021832,2]
[312586731,1706033438903,-499.99,0.00021832,2]
[312586732,1706033438912,-767.43247508,0.00021837,2]
[312586733,1706033438922,-263.3506829,0.00021844,2]
[312586734,1706033438932,-250.0,0.00021918,2]
[312586735,1706033438941,-174.92748785,0.00021954,2]
[312586736,1706033438950,-150.0,0.00022,2]
[312586737,1706033438961,-352.5,0.00022,2]
[312586738,1706033438970,-290.5559007,0.00022,2]
[312586739,1706033438979,-333.99,0.00022072,2]
[312586740,1706033438989,-174.92748785,0.0002227,2]
[312586741,1706033438998,-1508.09251334,0.00022304,2]
[312586742,1706033439007,-200.0,0.000224,8]
[312586743,1706033439016,-821.6345251,0.00022415,2]
[312586744,1706033439100,-178.3654749,0.00022415,2]
[312586745,1706033439110,-870.5037117,0.0002249,5]
[312586746,1706033439120,-500.0,0.000225,8]
[312586747,1706033439129,-1025.19,0.00022502,2]
[312586748,1706033439139,-239.24088123,0.00022548,2]
[312586749,1706033439148,-174.92748785,0.00022585,2]
[312586750,1706033439157,-800.0,0.000226,8]
[312586751,1706033439166,-1100.0,0.000227,8]
[312586752,1706033439176,-1500.0,0.00022722,2]
[312586753,1706033439184,-1500.0,0.00022725,2]
[312586754,1706033439193,-150.0,0.00022725,2]
[312586755,1706033439202,-150.0,0.00022726,2]
[312586756,1706033439213,-1500.0,0.00022727,2]
[312586757,1706033439222,-150.0,0.00022727,2]
[312586758,1706033439231,-150.0,0.00022729,2]
[312586759,1706033439240,-150.0,0.0002273,2]
[312586760,1706033439249,-150.0,0.00022734,2]
[312586761,1706033439259,-150.0,0.00022735,2]
[312586762,1706033439268,-300.0,0.00022735,2]
[312586763,1706033439277,-202.25903178,0.00022737,2]
[312586764,1706033439286,-156.29371843,0.00022738,2]
[312586765,1706033439295,-150.0,0.0002274,2]
[312586766,1706033439305,-150.0,0.0002274,2]
[312586767,1706033439314,-150.0,0.00022741,2]
[312586768,1706033439322,-150.0,0.00022745,2]
[312586769,1706033439331,-1500.0,0.00022745,2]
[312586770,1706033439340,-150.0,0.00022746,2]
[312586771,1706033439349,-150.0,0.00022747,2]
[312586772,1706033439358,-150.0,0.00022755,2]
[312586773,1706033439367,-150.0,0.00022756,2]
[312586774,1706033439376,-300.0,0.00022758,2]
[312586775,1706033439385,-1500.0,0.0002276,2]
[312586776,1706033439393,-150.0,0.00022761,2]
[312586777,1706033439402,-150.0,0.00022764,2]
[312586778,1706033439411,-150.0,0.00022765,2]
[312586779,1706033439420,-150.0,0.00022765,2]
[312586780,1706033439428,-527.75,0.00022767,14]
[312586781,1706033439437,-150.0,0.00022769,2]
[312586782,1706033439446,-150.0,0.00022772,2]
[312586783,1706033439454,-150.0,0.00022772,2]
[312586784,1706033439464,-150.0,0.00022773,2]
[312586785,1706033439474,-166.91230757,0.00022774,2]
[312586786,1706033439483,-150.0,0.00022778,2]
[312586787,1706033439492,-150.0,0.0002278,2]
[312586788,1706033439501,-300.0,0.00022781,2]
[312586789,1706033439510,-150.0,0.00022785,2]
[312586790,1706033439519,-150.0,0.00022786,2]
[312586791,1706033439528,-150.0,0.00022787,2]
[312586792,1706033439538,-1500.0,0.00022789,2]
[312586793,1706033439546,-150.0,0.00022791,2]
[312586794,1706033439554,-150.0,0.00022793,2]
[312586795,1706033439563,-150.0,0.00022797,2]
[312586796,1706033439572,-150.0,0.00022797,2]
[312586797,1706033439581,-1400.0,0.000228,8]
[312586798,1706033439591,-150.0,0.00022802,2]
[312586799,1706033439600,-150.0,0.00022803,2]
[312586800,1706033439609,-150.0,0.00022804,2]
[312586801,1706033439618,-150.0,0.00022804,2]
[312586802,1706033439627,-150.0,0.00022805,2]
[312586803,1706033439636,-1500.0,0.00022808,2]
[312586804,1706033439646,-150.0,0.00022813,2]
[312586805,1706033439655,-800.0,0.00022816,2]
[312586806,1706033439664,-150.0,0.0002282,2]
[312586807,1706033439673,-150.0,0.00022821,2]
[312586808,1706033439682,-300.0,0.00022822,2]
[312586809,1706033439691,-150.0,0.00022823,2]
[312586810,1706033439700,-202.0,0.00022827,4]
[312586811,1706033439710,-1500.0,0.00022831,2]
[312586812,1706033439719,-150.0,0.00022833,2]
[312586813,1706033439728,-150.0,0.00022835,2]
[312586814,1706033439737,-150.0,0.00022835,2]
[312586815,1706033439745,-840.93339604,0.00022838,2]
[312586816,1706033439755,-150.0,0.00022841,2]
[312586817,1706033439764,-150.0,0.00022842,2]
[312586818,1706033439774,-1500.0,0.00022844,2]
[312586819,1706033439782,-585.35161917,0.00022845,2]
[312586820,1706033439792,-201.0,0.00022846,2]
[312586821,1706033439806,-150.0,0.00022848,2]
[312586822,1706033439817,-150.0,0.00022849,2]
[312586823,1706033439826,-1500.0,0.0002285,2]
[312586824,1706033439835,-150.0,0.00022853,2]
[312586825,1706033439845,-150.0,0.00022854,2]
[312586826,1706033439854,-150.0,0.00022857,2]
[312586827,1706033439863,-150.0,0.00022857,2]
[312586828,1706033439872,-150.0,0.00022858,2]
[312586829,1706033439882,-150.0,0.00022865,2]
[312586830,1706033439891,-150.0,0.00022867,2]
[312586831,1706033439900,-1500.0,0.0002287,2]
[312586832,1706033439909,-1500.0,0.00022874,2]
[312586833,1706033439918,-150.0,0.00022874,2]
[312586834,1706033439927,-150.0,0.00022876,2]
[312586835,1706033439936,-150.0,0.00022877,2]
[312586836,1706033439945,-150.0,0.00022877,2]
[312586837,1706033439955,-150.0,0.00022878,2]
[312586838,1706033439969,-155.0,0.00022879,2]
[312586839,1706033439978,-150.0,0.00022879,2]
[312586840,1706033439987,-150.0,0.00022879,2]
[312586841,1706033439996,-300.0,0.00022881,2]
[312586842,1706033440005,-150.0,0.00022881,2]
[312586843,1706033440014,-150.0,0.00022882,2]
[312586844,1706033440023,-150.0,0.00022882,2]
[312586845,1706033440032,-269.23366785,0.00022883,2]
[312586846,1706033440041,-278.64389196,0.00022883,2]
[312586847,1706033440050,-150.0,0.00022883,2]
[312586848,1706033440059,-150.0,0.00022883,2]
[312586849,1706033440068,-15362.27544999,0.00022885,2]
[312586850,1706033440081,-96861.35315001,0.00022885,2]
[312586851,1706033440089,-150.0,0.00022887,2]
[312586852,1706033440098,-150.0,0.00022888,2]
[312586853,1706033440107,-150.0,0.00022892,2]
[312586854,1706033440116,-150.0,0.00022895,2]
[312586855,1706033440125,-5238.4864,0.00022896,2]
[312586856,1706033440134,-9942.7607,0.00022896,2]
[312586857,1706033440143,-150.0,0.00022896,2]
[312586858,1706033440153,-596.08368064,0.00022898,2]
[312586859,1706033440163,-1998.64306182,0.000229,2]
[312586860,1706033440172,-55555.0,0.000229,2]
[312586861,1706033440181,-150.0,0.000229,2]
[312586862,1706033440191,-184.71706285,0.000229,2]
[312586863,1706033440200,-1453.96346738,0.000229,2]
[312586864,1706033440211,-174.92748785,0.000229,2]
[312586865,1706033440220,-163.66174506,0.000229,2]
[312586866,1706033440229,-194.92807976,0.000229,2]
[312586867,1706033440239,-183.11620058,0.000229,2]
[312586868,1706033440248,-200.0,0.000229,8]
[312586869,1706033440257,-2197.36665785,0.00022901,2]
[312586870,1706033440266,-1696.0,0.00022902,2]
[312586871,1706033440276,-150.0,0.00022902,2]
[312586872,1706033440285,-1500.0,0.00022905,2]
[312586873,1706033440294,-150.0,0.00022908,2]
[312586874,1706033440303,-150.0,0.00022909,2]
[312586875,1706033440313,-150.0,0.0002291,2]
[312586876,1706033440322,-150.0,0.0002291,2]
[312586877,1706033440331,-150.0,0.00022915,2]
[312586878,1706033440340,-150.0,0.00022921,2]
[312586879,1706033440349,-150.0,0.00022922,2]
[312586880,1706033440358,-150.0,0.00022924,2]
[312586881,1706033440367,-1500.0,0.00022926,2]
[312586882,1706033440375,-150.0,0.00022929,2]
[312586883,1706033440385,-150.0,0.00022935,2]
[312586884,1706033440394,-150.0,0.00022942,2]
[312586885,1706033440403,-150.0,0.00022946,2]
[312586886,1706033440412,-150.0,0.00022959,2]
[312586887,1706033440421,-150.0,0.0002296,2]
[312586888,1706033440430,-150.0,0.00022961,2]
[312586890,1706033440439,-150.0,0.00022967,2]
[312586892,1706033440448,-150.0,0.00022967,2]
[312586894,1706033440458,-150.0,0.00022968,2]
[312586896,1706033440469,-1500.0,0.00022973,2]
[312586897,1706033440479,-300.0,0.00022975,2]
[312586898,1706033440488,-150.0,0.00022975,2]
[312586899,1706033440497,-150.0,0.00022975,2]
[312586901,1706033440506,-150.0,0.00022976,2]
[312586903,1706033440515,-150.0,0.00022978,2]
[312586905,1706033440524,-1500.0,0.0002298,2]
[312586906,1706033440533,-150.0,0.0002298,2]
[312586907,1706033440543,-150.0,0.00022981,2]
[312586908,1706033440551,-150.0,0.00022981,2]
[312586910,1706033440561,-150.0,0.00022982,2]
[312586911,1706033440570,-150.0,0.00022982,2]
[312586912,1706033440579,-150.0,0.00022984,2]
[312586913,1706033440588,-1500.0,0.00022985,2]
[312586914,1706033440597,-150.0,0.00022987,2]
[312586915,1706033440606,-150.0,0.00022988,2]
[312586916,1706033440614,-150.0,0.00022991,2]
[312586917,1706033440624,-537.20957409,0.00022994,2]
[312586918,1706033440633,-273.26410562,0.00022994,2]
[312586919,1706033440643,-345.76613305,0.00022994,2]
[312586920,1706033440652,-155.0,0.00022994,2]
[312586921,1706033440661,-307.42593914,0.00022994,2]
[312586922,1706033440670,-156.93056967,0.00022994,2]
[312586923,1706033440679,-241.08864406,0.00022994,2]
[312586924,1706033440688,-297.71195714,0.00022994,2]
[312586925,1706033440697,-236.39283217,0.00022994,2]
[312586926,1706033440707,-222.22287169,0.00022994,2]
[312586927,1706033440720,-209.38155424,0.00022994,2]
[312586928,1706033440729,-155.45683396,0.00022994,2]
[312586929,1706033440739,-287.3720925,0.00022994,2]
[312586930,1706033440748,-177.44890332,0.00022994,2]
[312586931,1706033440757,-343.31436461,0.00022994,2]
[312586932,1706033440767,-1630.22600068,0.00022994,2]
[312586933,1706033440776,-264.47875424,0.00022994,2]
[312586934,1706033440786,-589.51872045,0.00022995,2]
[312586935,1706033440796,-867.65374985,0.00022995,2]
[312586936,1706033440808,-150.0,0.00022995,2]
[312586937,1706033440817,-2000.0,0.00022996,2]
[312586938,1706033440827,-155.0,0.00022997,2]
[312586939,1706033440837,-240.7432794,0.00022997,2]
[312586940,1706033440846,-155.0,0.00022997,2]
[312586941,1706033440856,-525.13031087,0.00022997,2]
[312586942,1706033440865,-207.00035398,0.00022998,2]
[312586943,1706033440874,-401.57543249,0.00022998,2]
[312586944,1706033440885,-2142.99004246,0.00022998,2]
[312586945,1706033440894,-155.8409457,0.00022998,2]
[312586946,1706033440904,-155.0,0.00022998,2]
[312586947,1706033440912,-1381.61526335,0.00022998,2]
[312586948,1706033440922,-4490.4877716,0.00022998,2]
[312586949,1706033440931,-39954.33743382,0.00022998,2]
[312586950,1706033440940,-318.525335,0.00022998,2]
[312586951,1706033440950,-523.90953514,0.00022998,2]
[312586952,1706033440959,-6437.51501996,0.00022998,2]
[312586953,1706033440970,-3859.00309907,0.00022998,2]
[312586954,1706033440979,-155.0,0.00022998,2]
[312586955,1706033440989,-155.39285442,0.00022998,2]
[312586956,1706033440998,-2020.14907703,0.00022998,2]
[312586957,1706033441008,-698.04764279,0.00022998,2]
[312586958,1706033441017,-581.89521876,0.00022998,2]
[312586959,1706033441026,-160.6463697,0.00022998,2]
[312586960,1706033441034,-284.94387403,0.00022998,2]
[312586961,1706033441044,-163.94799858,0.00022998,2]
[312586962,1706033441053,-196.30617543,0.00022998,2]
[312586963,1706033441063,-159.68522719,0.00022998,2]
[312586964,1706033441072,-263.3780082,0.00022998,2]
[312586965,1706033441081,-150.0,0.00022998,2]
[312586966,1706033441091,-155.34181673,0.00022999,2]
[312586967,1706033441101,-334.13542725,0.00022999,2]
[312586968,1706033441109,-155.29300949,0.00022999,2]
[312586969,1706033441118,-204.66572487,0.00022999,2]
[312586970,1706033441128,-207.73797985,0.00022999,2]